bitfinex-derivatives/quotes_SOLF0:USTF0_20250415
["timestamp","ask_amount","ask_price","bid_price","bid_amount"]
[1744675481617,7.7585,128.9,128.89,0.05022922]
[1744675482305,7.7618,128.85,128.82,33.8]
[1744675482511,33.8,128.92,128.82,33.8]
[1744675482711,87.72122804,128.91,128.82,33.8]
[1744675482914,82.19474898,128.91,128.82,33.8]
[1744675483113,80.84397461,128.9,128.78,37.8764]
[1744675483310,80.84397461,128.89,128.78,35.8534]
[1744675483508,7.7621,128.84,128.83,0.04977859]
[1744675483813,0.05754657,128.85,128.78,33.8]
[1744675484008,37.9162,128.88,128.78,33.8]
[1744675484707,37.9162,128.88,128.75,37.8499]
[1744675484912,0.05153501,128.84,128.75,33.8]
[1744675485111,33.8,128.83,128.75,33.8]
[1744675485612,7.7662,128.78,128.75,33.8]
[1744675485920,33.8,128.83,128.75,33.8]
[1744675486111,0.05899912,128.78,128.75,33.8]
[1744675486309,7.82509912,128.78,128.75,33.8]
[1744675486511,7.82509912,128.78,128.75,33.85271912]
[1744675487318,0.05899912,128.78,128.75,33.85271912]
[1744675488021,0.05899912,128.78,128.77,7.7664]
[1744675489926,80.84397461,128.87,128.77,7.76]
[1744675490221,4.1162,128.88,128.78,2.1601]
[1744675490423,4.1162,128.88,128.8,7.7644]
[1744675490827,4.1162,128.88,128.79,33.82]
[1744675491124,0.05694419,128.85,128.83,8.496e-05]
[1744675491325,33.82,128.85,128.76,33.82]
[1744675491727,80.84397461,128.87,128.76,33.82]
[1744675492024,7.7608,128.87,128.82,7.763]
[1744675492222,0.05854619,128.86,128.83,0.0530626]
[1744675492520,7.81984619,128.86,128.83,0.0530626]
[1744675493322,7.7621,128.84,128.83,6.26e-05]
[1744675493827,7.7655,128.79,128.75,33.82]
[1744675494326,33.82,128.84,128.75,41.5875]
[1744675494816,33.82,128.84,128.75,33.82]
[1744675495022,0.0577518,128.81,128.78,0.05159117]
[1744675495222,7.7649,128.8,128.78,0.05159117]
[1744675495923,7.7651,128.79,128.78,0.05159117]
[1744675497629,7.7648,128.8,128.78,0.05159117]
[1744675497929,0.0577518,128.81,128.78,33.89159117]
[1744675498227,7.7651,128.79,128.78,33.89159117]
[1744675498424,7.7651,128.79,128.78,0.05159117]
[1744675498822,7.7676,128.75,128.74,33.84]
[1744675499027,35.965,128.8,128.68,2.0469]
[1744675499229,35.965,128.8,128.71,33.84]
[1744675499427,116.80897461,128.8,128.71,33.84]
[1744675499824,114.68397461,128.8,128.71,33.84]
[1744675500025,80.84397461,128.8,128.71,33.84]
[1744675500927,0.05376156,128.77,128.75,7.7676]
[1744675501125,82.96897461,128.85,128.76,33.02]
[1744675501427,115.98897461,128.85,128.77,7.7662]
[1744675502133,7.7646,128.8,128.76,42.9349]
[1744675502333,0.0492848,128.82,128.8,0.05744913]
[1744675502534,33.02,128.81,128.65,359.0]
[1744675502735,7.7678,128.75,128.71,7.7694]
[1744675502936,33.02,128.81,128.72,33.02]
[1744675503529,33.02,128.81,128.68,2.0247]
[1744675503530,80.84397461,128.8,128.68,2.0247]
[1744675503835,7.7705,128.71,128.68,2.0247]
[1744675504738,7.7709,128.7,128.68,2.0247]
[1744675504930,0.05275442,128.71,128.68,2.08085753]
[1744675505236,0.04897934,128.71,128.68,0.04958903]
[1744675505634,0.04897934,128.71,128.68,33.06958903]
[1744675506137,0.04897934,128.71,128.68,0.04958903]
[1744675507037,7.7712,128.69,128.68,0.04958903]
[1744675508732,0.04897934,128.71,128.68,0.04958903]
[1744675508941,80.84397461,128.76,128.71,7.7697]
[1744675509238,7.7697,128.72,128.69,35.1374]
[1744675509437,2.0728,128.78,128.69,42.9086]
[1744675509743,7.7691,128.73,128.69,42.9086]
[1744675509941,0.05822103,128.72,128.7,0.05388748]
[1744675510343,7.7679,128.75,128.7,2.21628748]
[1744675510641,2.0728,128.78,128.71,7.7696]
[1744675510839,2.0728,128.78,128.7,2.1624]
[1744675511236,7.7684,128.74,128.7,2.1624]
[1744675511436,7.7684,128.74,128.73,0.05212461]
[1744675511638,7.82257239,128.75,128.73,0.05212461]
[1744675511835,0.05467239,128.75,128.73,0.05212461]
[1744675512038,0.05467239,128.75,128.73,33.07212461]
[1744675512643,0.05467239,128.75,128.73,0.05212461]
[1744675512942,7.7682,128.74,128.73,0.05212461]
[1744675516644,7.7682,128.74,128.73,2.461e-05]
[1744675517340,7.7718,128.68,128.67,33.04]
[1744675517544,2.116,128.74,128.64,37.2131]
[1744675517742,5.53083277,128.73,128.64,35.2134]
[1744675518143,7.7727,128.67,128.64,35.2134]
[1744675518447,7.82555044,128.67,128.64,35.26337887]
[1744675518846,7.773,128.66,128.64,35.26337887]
[1744675519348,7.82565044,128.67,128.64,35.26337887]
[1744675520447,7.82565044,128.67,128.64,43.03747887]
[1744675520746,7.82565044,128.67,128.64,35.26337887]
[1744675520946,0.05285044,128.67,128.64,35.26337887]
[1744675522248,0.05285044,128.67,128.64,33.08997887]
[1744675522747,7.82555044,128.67,128.64,33.08997887]
[1744675523144,7.7736,128.65,128.64,33.08997887]
[1744675523546,7.7733,128.66,128.64,33.08997887]
[1744675523740,0.05285044,128.67,128.64,33.08997887]
[1744675524149,0.05285044,128.67,128.64,35.84967887]
[1744675524550,7.7735,128.66,128.64,35.84967887]
[1744675525251,7.7736,128.65,128.64,33.08997887]
[1744675526350,7.7733,128.66,128.64,33.08997887]
[1744675526549,0.05285044,128.67,128.64,33.08997887]
[1744675526750,4.1645,128.74,128.67,7.7723]
[1744675527048,5.56712217,128.73,128.68,33.04]
[1744675527249,33.04,128.78,128.69,2.0022]
[1744675527553,5.57283257,128.77,128.7,3.14271786]
[1744675527743,5.0058,128.79,128.71,3.14271786]
[1744675528052,0.05091457,128.75,128.73,7.7684]
[1744675528451,0.05091457,128.75,128.73,7.82147182]
[1744675528754,0.05091457,128.75,128.74,7.7682]
[1744675529156,0.05091457,128.75,128.73,0.05307182]
[1744675530053,5.57794227,128.74,128.73,0.05307182]
[1744675530355,13.34614227,128.74,128.73,0.05307182]
[1744675530753,13.34614227,128.74,128.73,7.182e-05]
[1744675533161,7.7712,128.69,128.68,33.04]
[1744675533454,5.57794227,128.74,128.66,2.8313]
[1744675533455,32.4,128.73,128.66,2.8313]
[1744675533657,5.57649431,128.72,128.66,2.8313]
[1744675533856,7.7721,128.68,128.66,2.8313]
[1744675534057,32.4,128.73,128.64,591.72]
[1744675534259,0.0494961,128.7,128.68,7.935e-05]
[1744675534456,5.57726881,128.69,128.6,7.4888]
[1744675534665,37.97726881,128.68,128.59,35.61046822]
[1744675534959,7.7765,128.61,128.59,35.61046822]
[1744675535258,5.57726881,128.67,128.59,35.61046822]
[1744675535259,2.0902,128.67,128.59,35.61046822]
[1744675535458,7.7766,128.6,128.59,35.61046822]
[1744675535962,7.7766,128.6,128.58,32.45697433]
[1744675536162,7.82980812,128.61,128.58,32.45697433]
[1744675536461,0.05350812,128.61,128.58,32.45697433]
[1744675537864,2.0902,128.67,128.59,7.7768]
[1744675538365,7.7746,128.64,128.59,7.7768]
[1744675538860,2.0902,128.67,128.58,32.4]
[1744675539066,2.0902,128.67,128.6,0.05835655]
[1744675539067,0.05820345,128.63,128.6,0.05835655]
[1744675539465,7.83320345,128.63,128.6,0.05835655]
[1744675539865,0.05820345,128.63,128.6,0.05835655]
[1744675541066,7.83330345,128.63,128.6,0.05835655]
[1744675541267,0.05820345,128.63,128.6,0.05835655]
[1744675541670,7.83330345,128.63,128.6,0.05835655]
[1744675542367,7.7754,128.62,128.6,0.05835655]
[1744675542572,0.05820345,128.63,128.6,0.05835655]
[1744675542967,7.7759,128.62,128.6,0.05835655]
[1744675543564,0.05820345,128.63,128.6,0.05835655]
[1744675543769,0.05820345,128.63,128.61,3.15148711]
[1744675543965,80.84397461,128.69,128.63,7.7745]
[1744675544169,7.7729,128.67,128.63,7.7745]
[1744675544372,7.7729,128.67,128.62,32.4]
[1744675544561,116.15757461,128.75,128.63,5.80911247]
[1744675544767,7.7712,128.69,128.64,3.15141247]
[1744675544966,0.05073051,128.68,128.66,7.7726]
[1744675545168,7.7714,128.69,128.67,32.4]
[1744675545369,0.05306368,128.68,128.67,32.4]
[1744675545573,5.6054,128.75,128.67,32.4]
[1744675545761,15.5294,128.8,128.67,32.4]
[1744675545762,32.4,128.81,128.68,3.15079662]
[1744675545961,5.58874189,128.8,128.69,3.15038384]
[1744675546170,7.7655,128.79,128.7,3.15038384]
[1744675546362,32.4,128.84,128.71,38.20808384]
[1744675546561,5.58961155,128.83,128.79,7.7646]
[1744675546867,176.276723,128.86,128.8,35.54936164]
[1744675547066,118.89357461,128.91,128.81,35.54866935]
[1744675547261,5.59534929,128.9,128.81,32.4]
[1744675547466,5.59534929,128.89,128.81,32.4]
[1744675547671,5.59534929,128.88,128.82,3.14654271]
[1744675547870,5.6496,128.91,128.81,32.4]
[1744675548072,5.59297188,128.9,128.82,3.14642938]
[1744675548373,0.05321527,128.87,128.85,0.05407812]
[1744675548566,0.05321527,128.87,128.85,32.45407812]
[1744675550173,32.4,128.94,128.85,32.45407812]
[1744675550373,5.57714734,128.93,128.85,40.1614]
[1744675550572,5.57714734,128.93,128.85,32.4]
[1744675550871,7.7583,128.91,128.85,32.4]
[1744675551076,0.04978721,128.89,128.87,0.05308855]
[1744675551278,5.56849517,128.93,128.87,0.05308855]
[1744675551472,0.05162268,128.89,128.87,0.05308855]
[1744675552878,0.05162268,128.89,128.88,7.7597]
[1744675553074,591.7,128.98,128.88,7.7597]
[1744675553280,32.38,128.98,128.89,32.38]
[1744675554077,3.0847,128.99,128.89,32.38]
[1744675554382,0.0501876,128.95,128.92,0.05963023]
[1744675554579,0.0501876,128.95,128.93,32.38]
[1744675554982,3.1488,129.01,128.93,32.38]
[1744675555181,2.8139,129.06,128.93,32.38]
[1744675555375,7.7503,129.04,128.99,7.753]
[1744675555574,6.2335,129.07,129.0,32.38]
[1744675556372,0.05975944,129.05,129.02,0.05801993]
[1744675558182,7.7501,129.04,129.02,0.05801993]
[1744675558379,0.05975944,129.05,129.02,0.05801993]
[1744675558578,7.7507,129.03,129.02,0.05801993]
[1744675560682,0.05975944,129.05,129.02,0.05801993]
[1744675560987,0.05975944,129.05,129.03,40.0905]
[1744675561388,0.05975944,129.05,129.03,32.34]
[1744675562394,7.80955944,129.05,129.03,32.34]
[1744675562786,0.05975944,129.05,129.03,32.34]
[1744675563388,0.05975944,129.05,129.03,35.4666]
[1744675563590,0.05975944,129.05,129.02,0.05801993]
[1744675563992,7.7507,129.03,129.02,0.05801993]
[1744675564192,7.7507,129.03,129.02,1.993e-05]
[1744675565595,7.7537,128.98,128.97,31.9]
[1744675565993,8.6626,129.04,128.97,31.9]
[1744675566491,112.74397461,129.08,128.97,31.9]
[1744675566690,31.9,129.08,128.97,31.9]
[1744675566890,0.05045933,129.04,129.01,0.0554274]
[1744675567092,0.05045933,129.04,129.01,31.9554274]
[1744675567590,0.05045933,129.04,129.02,3.0229]
[1744675567788,7.80085933,129.04,129.02,3.0229]
[1744675567991,0.05045933,129.04,129.02,3.0229]
[1744675568196,40.5626,129.11,129.02,3.0229]
[1744675568397,7.749,129.06,129.02,3.0229]
[1744675568791,7.749,129.06,129.02,10.774]
[1744675568997,40.5626,129.11,129.01,31.9]
[1744675569198,80.84397461,129.1,128.97,31.88]
[1744675569395,0.05744313,129.07,128.97,31.88]
[1744675569595,7.7524,129.01,128.97,31.88]
[1744675569796,31.88,129.06,128.97,31.88]
[1744675570095,80.84397461,129.05,128.94,558.24]
[1744675570294,80.84397461,129.04,128.91,31.88]
[1744675570500,7.7578,128.92,128.9,31.88]
[1744675570698,31.88,128.98,128.9,31.88]
[1744675570898,37.8869,128.97,128.9,31.88]
[1744675571099,7.7578,128.92,128.9,31.88]
[1744675571298,37.8869,128.97,128.9,31.88]
[1744675571500,37.8869,128.97,128.87,589.94]
[1744675571695,0.05478859,128.95,128.92,5.93e-06]
[1744675572095,7.7567,128.93,128.92,5.93e-06]
[1744675573493,39.6567,128.93,128.92,5.93e-06]
[1744675574594,80.84397461,128.92,128.84,31.9]
[1744675574800,80.84397461,128.92,128.81,31.9]
[1744675575002,7.7643,128.81,128.78,31.9]
[1744675575304,31.9,128.86,128.75,599.1782]
[1744675575494,7.7631,128.83,128.75,599.1782]
[1744675575697,0.05187739,128.82,128.79,0.05385685]
[1744675575900,0.05187739,128.82,128.79,31.95385685]
[1744675577102,7.7639,128.81,128.79,31.95385685]
[1744675577494,0.05187739,128.82,128.79,0.05385685]
[1744675577698,7.7645,128.8,128.79,0.05385685]
[1744675581110,7.7645,128.8,128.79,5.685e-05]
[1744675581304,6.004,128.81,128.73,31.92]
[1744675581500,6.004,128.81,128.69,590.54]
[1744675581709,80.84397461,128.8,128.69,590.54]
[1744675582306,7.81699077,128.76,128.73,0.051626]
[1744675582510,0.04969077,128.76,128.73,0.051626]
[1744675582806,0.04969077,128.76,128.73,31.971626]
[1744675583807,7.7679,128.75,128.73,31.971626]
[1744675584210,0.04969077,128.76,128.73,31.971626]
[1744675584808,0.04969077,128.76,128.73,0.051626]
[1744675585210,7.7682,128.74,128.73,0.051626]
[1744675585411,0.04969077,128.76,128.73,0.051626]
[1744675587206,0.04969077,128.76,128.74,31.94]
[1744675587406,0.04969077,128.76,128.75,7.7676]
[1744675588113,0.04969077,128.76,128.74,39.7079]
[1744675589014,0.04969077,128.76,128.75,7.7676]
[1744675592012,35.0812,128.84,128.79,7.7651]
[1744675592213,80.84397461,128.89,128.78,32.34]
[1744675592214,34.8504,128.87,128.78,32.34]
[1744675592517,2.8887,128.9,128.79,32.34]
[1744675592711,33.69122018,128.93,128.79,32.34]
[1744675592712,32.34,128.93,128.79,35.3858]
[1744675593016,7.7582,128.91,128.8,1.41975018]
[1744675593207,89.80447461,128.94,128.87,7.7598]
[1744675593411,7.7583,128.91,128.88,32.34]
[1744675593607,8.9605,128.94,128.89,0.05338937]
[1744675593817,0.05571687,128.91,128.89,0.05338937]
[1744675594221,7.81371687,128.91,128.89,0.05338937]
[1744675594916,0.05571687,128.91,128.89,0.05338937]
[1744675596009,0.05571687,128.91,128.9,7.7585]
[1744675596214,2.9393,128.99,128.89,10.67528937]
[1744675596410,2.9393,128.99,128.94,7.7558]
[1744675596716,32.32,129.07,128.94,32.32]
[1744675596914,32.32,129.07,128.99,7.7526]
[1744675597119,7.751,129.03,128.99,40.0726]
[1744675597310,0.05505843,129.04,129.02,0.05631926]
[1744675598122,7.7507,129.03,129.02,0.05631926]
[1744675601725,7.7507,129.03,129.02,1.926e-05]
[1744675602325,0.05505843,129.04,129.02,1.926e-05]
[1744675602528,2.9804,129.12,129.03,32.3]
[1744675602724,38.3726,129.13,129.04,7.7496]
[1744675603025,80.84397461,129.14,129.04,5.9408]
[1744675603519,80.84397461,129.14,129.08,0.05848632]
[1744675603725,0.05230096,129.1,129.08,0.05848632]
[1744675604127,7.7475,129.09,129.08,0.05848632]
[1744675604326,0.05230096,129.1,129.03,32.3]
[1744675604621,32.3,129.12,129.03,32.3]
[1744675604827,80.84397461,129.11,128.96,558.18]
[1744675605028,80.84397461,129.1,128.97,33.71787329]
[1744675605223,7.7513,129.03,128.98,7.7537]
[1744675605423,0.05431566,129.05,128.97,32.3]
[1744675605727,2.8789,129.06,128.97,32.3]
[1744675606029,80.84397461,129.05,128.97,32.3]
[1744675606626,0.05371177,129.02,129.0,0.05207997]
[1744675607327,7.80521177,129.02,129.0,0.05207997]
[1744675608627,0.05371177,129.02,129.0,0.05207997]
[1744675608825,80.84397461,129.09,129.02,7.7508]
[1744675609026,113.14397461,129.13,129.01,32.3]
[1744675609331,7.7468,129.1,129.02,1.41722624]
[1744675609529,80.84397461,129.13,129.02,4.37162624]
[1744675609726,7.7493,129.06,129.02,2.9544]
[1744675609931,80.84397461,129.13,129.02,2.9544]
[1744675610123,0.05084532,129.05,129.02,2.9544]
[1744675610328,0.05264518,129.09,129.06,0.05641686]
[1744675610621,0.04924542,129.09,129.06,32.35143746]
[1744675610930,7.7483,129.07,129.06,32.35143746]
[1744675611530,7.7481,129.08,129.06,32.35143746]
[1744675611732,0.04924542,129.09,129.06,32.35143746]
[1744675613030,0.04924542,129.09,129.06,0.05143746]
[1744675613631,7.7483,129.07,129.06,0.05143746]
[1744675614330,7.7506,129.04,129.01,32.28]
[1744675614529,2.9428,129.1,129.01,32.28]
[1744675614725,2.9428,129.1,129.02,7.7513]
[1744675614930,7.7495,129.05,129.01,32.28]
[1744675615234,80.84397461,129.13,129.01,32.28]
[1744675615428,38.2445,129.14,129.02,0.05681217]
[1744675615627,38.2445,129.14,129.02,1.41749309]
[1744675615933,38.2445,129.14,129.01,32.28]
[1744675616433,38.2445,129.14,129.04,7.7499]
[1744675616630,0.05308201,129.09,129.06,0.05917265]
[1744675616932,0.05308201,129.09,129.06,0.05518131]
[1744675617133,7.7489,129.07,129.06,0.05518131]
[1744675617732,0.05308201,129.09,129.06,0.05518131]
[1744675618133,7.7477,129.08,129.06,0.05518131]
[1744675619032,7.80048201,129.09,129.06,0.05518131]
[1744675619338,0.05308201,129.09,129.06,0.05518131]
[1744675619524,113.12397461,129.2,129.07,557.82]
[1744675619724,119.28197461,129.2,129.07,557.82]
[1744675620134,7.745,129.13,129.09,7.7468]
[1744675620337,119.28197461,129.2,129.1,32.28]
[1744675620637,7.7435,129.15,129.14,0.05746903]
[1744675621038,32.33168764,129.16,129.07,590.1]
[1744675621232,80.84397461,129.15,129.07,32.28]
[1744675621532,7.7477,129.08,129.07,32.28]
[1744675621733,80.84397461,129.15,129.07,32.28]
[1744675622134,0.05625053,129.12,129.1,0.05739395]
[1744675622341,0.05625053,129.12,129.11,32.82]
[1744675623340,0.05625053,129.12,129.1,0.05739395]
[1744675623539,0.05625053,129.12,129.1,9.395e-05]
[1744675623940,7.7459,129.11,129.1,9.395e-05]
[1744675624744,10.6163,129.11,129.1,9.395e-05]
[1744675626638,0.05625053,129.12,129.1,9.395e-05]
[1744675627343,7.7459,129.11,129.1,9.395e-05]
[1744675628347,0.05625053,129.12,129.1,9.395e-05]
[1744675628844,7.7459,129.11,129.1,9.395e-05]
[1744675630449,7.7459,129.11,129.01,590.62]
[1744675630450,7.74,129.11,129.01,590.62]
[1744675630644,41.9272,129.1,129.01,32.82]
[1744675631046,7.7493,129.06,129.02,7.7508]
[1744675631246,41.9272,129.1,129.01,32.82]
[1744675631542,7.7516,129.02,128.98,82.26056822]
[1744675631746,80.84397461,129.09,128.99,0.05202975]
[1744675631946,80.84397461,129.09,128.98,74.50716822]
[1744675632148,0.05603627,129.05,129.03,0.05223429]
[1744675632546,7.7501,129.04,129.03,0.05223429]
[1744675633852,7.7528,129.0,128.98,32.82]
[1744675634151,15.4956,129.08,128.98,32.82]
[1744675634350,38.35251806,129.07,128.98,32.82]
[1744675634648,5.53251806,129.06,128.98,32.82]
[1744675634950,0.0562365,129.03,129.01,0.05230227]
[1744675635247,0.0562365,129.03,128.98,32.82]
[1744675635649,7.7531,128.99,128.98,32.82]
[1744675636548,0.05289389,129.0,128.98,32.82]
[1744675636749,80.84397461,129.06,128.98,32.82]
[1744675636949,5.55453945,129.05,128.98,32.82]
[1744675637149,0.05135055,129.03,129.01,0.0514151]
[1744675637349,5.55453945,129.02,129.01,0.0514151]
[1744675637549,13.30583945,129.02,129.01,0.0514151]
[1744675638249,13.32505472,129.02,129.01,0.0514151]
[1744675638446,13.32541978,129.02,129.01,0.0514151]
[1744675638645,13.32541978,129.02,128.95,565.4354]
[1744675638646,13.33411978,129.02,128.93,32.82]
[1744675638849,89.38769439,129.01,128.91,32.82]
[1744675639044,5.57411978,129.0,128.91,32.82]
[1744675639249,5.57411978,128.99,128.92,3.1410363]
[1744675639545,5.57411978,128.98,128.93,3.1410363]
[1744675639750,0.05115455,128.97,128.94,3.19154566]
[1744675639951,0.05115455,128.97,128.95,35.9610363]
[1744675640248,0.05115455,128.97,128.95,32.82]
[1744675641655,5.58613811,128.96,128.95,32.82]
[1744675641951,5.58613811,128.96,128.94,0.05050936]
[1744675642151,13.34163811,128.95,128.94,9.36e-06]
[1744675643552,7.7608,128.87,128.85,32.84]
[1744675643752,5.7642,128.94,128.84,32.84]
[1744675644048,7.7609,128.86,128.85,3.14394691]
[1744675644250,32.84,128.91,128.84,32.84]
[1744675644444,5.56034826,128.9,128.84,32.84]
[1744675644652,7.7607,128.87,128.86,0.05032165]
[1744675645751,7.7607,128.87,128.86,2.165e-05]
[1744675646648,0.05170333,128.88,128.86,2.165e-05]
[1744675646649,7.81170333,128.88,128.86,2.165e-05]
[1744675646854,0.05170333,128.88,128.86,2.165e-05]
[1744675647254,0.05170333,128.88,128.86,7.76062165]
[1744675647456,0.05170333,128.88,128.86,2.165e-05]
[1744675647955,0.05170333,128.88,128.86,7.76052165]
[1744675648252,0.05170333,128.88,128.86,2.165e-05]
[1744675648651,7.7576,128.92,128.88,7.7595]
[1744675648952,7.7576,128.92,128.89,32.86]
[1744675649253,32.86,129.03,128.89,32.86]
[1744675649554,7.7531,129.0,128.9,568.89068423]
[1744675649755,0.05666014,128.97,128.95,0.05956459]
[1744675649959,32.86,129.03,128.96,32.86]
[1744675650557,0.04945386,129.01,128.98,0.05278864]
[1744675651159,7.7531,128.99,128.98,0.05278864]
[1744675651554,0.04945386,129.01,128.93,32.86]
[1744675651759,32.86,129.03,128.9,597.2082]
[1744675651760,7.7565,128.94,128.9,597.2082]
[1744675652158,32.86,129.0,128.9,597.2082]
[1744675652363,7.7561,128.95,128.9,604.9664]
[1744675652563,593.8825,129.04,128.91,0.05116542]
[1744675652768,7.7531,128.99,128.9,597.2082]
[1744675653069,593.8825,129.04,128.9,597.2082]
[1744675653470,7.7544,128.97,128.9,597.2082]
[1744675653868,0.0586452,128.95,128.92,0.05406511]
[1744675654571,0.0586452,128.95,128.93,7.7563]
[1744675654868,0.0586452,128.95,128.94,32.68]
[1744675656264,0.0586452,128.95,128.94,40.4361]
[1744675657165,0.0586452,128.95,128.94,32.68]
[1744675660670,0.0586452,128.95,128.94,40.4361]
[1744675660871,35.5625,129.04,128.94,32.68]
[1744675661075,48.1755,129.08,128.94,32.68]
[1744675661274,7.7516,129.02,128.98,7.7536]
[1744675661475,48.1755,129.08,128.99,32.68]
[1744675661876,7.7517,129.02,128.99,32.68]
[1744675662268,7.80907098,129.02,128.99,32.73596902]
[1744675662774,7.80907098,129.02,128.99,40.48906902]
[1744675663673,0.05737098,129.02,129.0,7.7525]
[1744675664374,0.05737098,129.02,128.99,40.48876902]
[1744675664573,7.80877098,129.02,128.99,40.48876902]
[1744675664775,0.05737098,129.02,128.99,32.73596902]
[1744675665577,7.7525,129.0,128.99,32.73596902]
[1744675666383,0.05737098,129.02,128.99,32.73596902]
[1744675666882,0.05737098,129.02,129.01,7.7519]
[1744675667081,8.9487,129.09,129.0,3.0963]
[1744675667278,32.68,129.14,129.01,3.13193415]
[1744675667477,7.7465,129.1,129.02,4.55108797]
[1744675667678,7.7465,129.1,129.03,35.81385816]
[1744675667889,9.0259,129.15,129.03,32.68]
[1744675668182,9.0259,129.15,129.06,7.7485]
[1744675668381,0.05404351,129.1,129.08,0.04922667]
[1744675668680,0.05864304,129.1,129.08,0.04922667]
[1744675668883,0.05864304,129.1,129.04,32.68]
[1744675669085,32.68,129.12,129.04,32.68]
[1744675669587,48.1708,129.12,129.04,32.68]
[1744675669882,48.1708,129.12,129.01,32.68]
[1744675670079,0.05973439,129.09,129.07,0.05399591]
[1744675670278,0.05973439,129.09,129.01,32.68]
[1744675670477,7.7504,129.04,129.01,32.68]
[1744675670785,23.32,129.12,128.98,558.14]
[1744675670975,7.7537,128.98,128.97,32.66]
[1744675671180,32.66,129.04,128.95,8.91106893]
[1744675671380,0.04897823,128.99,128.96,0.05711839]
[1744675671580,7.7549,128.96,128.95,8.91106893]
[1744675672289,7.7555,128.95,128.94,0.0513619]
[1744675673681,0.05050231,128.96,128.94,0.0513619]
[1744675674184,7.80570231,128.96,128.94,0.0513619]
[1744675674682,0.05050231,128.96,128.94,0.0513619]
[1744675674891,7.80570231,128.96,128.94,0.0513619]
[1744675675082,0.05050231,128.96,128.94,0.0513619]
[1744675675285,32.66,129.05,128.94,0.0513619]
[1744675675485,32.66,129.05,128.95,3.14088827]
[1744675675787,7.7523,129.01,128.96,7.7546]
[1744675675987,7.7523,129.01,128.97,32.66]
[1744675676284,0.05176277,129.0,128.98,0.05376079]
[1744675676586,7.81146947,129.0,128.98,0.05376079]
[1744675676785,0.05856947,129.0,128.98,0.05376079]
[1744675677085,7.81146947,129.0,128.98,0.05376079]
[1744675677887,7.7531,128.99,128.98,0.05376079]
[1744675678093,0.05856947,129.0,128.98,0.05376079]
[1744675678389,7.81156947,129.0,128.98,0.05376079]
[1744675678689,0.05856947,129.0,128.98,0.05376079]
[1744675679488,0.05856947,129.0,128.98,7.80706079]
[1744675679690,0.05856947,129.0,128.98,10.94786079]
[1744675680896,0.05856947,129.0,128.98,0.05376079]
[1744675681594,7.81136947,129.0,128.98,0.05376079]
[1744675682197,0.05856947,129.0,128.98,7.80736079]
[1744675683596,7.81116947,129.0,128.98,7.80736079]
[1744675684097,0.05856947,129.0,128.99,7.7531]
[1744675684298,1.54894671,129.12,128.99,3.14007972]
[1744675684596,8.9032,129.14,129.0,565.75818242]
[1744675684797,8.9032,129.14,129.01,36.83768242]
[1744675685098,8.9032,129.14,129.02,4.55739985]
[1744675685301,0.05309864,129.09,129.07,0.05709285]
[1744675685503,32.28,129.12,129.07,0.05709285]
[1744675685698,0.05173452,129.09,129.07,0.05709285]
[1744675686200,7.7477,129.08,129.07,0.05709285]
[1744675689605,7.7489,129.06,129.05,32.28]
[1744675689906,0.05173452,129.09,129.05,32.28]
[1744675690104,7.7478,129.08,129.05,32.28]
[1744675690607,0.05173452,129.09,129.05,32.3369766]
[1744675691207,7.748,129.08,129.05,32.3369766]
[1744675692409,7.7484,129.07,129.05,32.3369766]
[1744675692709,0.05173452,129.09,129.05,0.0569766]
[1744675693099,7.7489,129.06,129.05,0.0569766]
[1744675694206,7.74,129.06,128.97,32.26]
[1744675694508,5.8874,129.05,128.97,32.26]
[1744675695214,0.05861419,129.02,129.0,0.05773602]
[1744675695711,7.7519,129.01,129.0,0.05773602]
[1744675699016,7.81011419,129.02,129.0,0.05773602]
[1744675699414,0.05861419,129.02,129.0,0.05773602]
[1744675699612,7.7519,129.01,129.0,0.05773602]
[1744675700112,7.81021419,129.02,129.0,0.05773602]
[1744675700313,0.05861419,129.02,129.0,0.05773602]
[1744675702611,32.26,129.1,129.01,35.40952752]